bitfinex-derivatives/quotes_BTCF0:USTF0_20250324
["timestamp","ask_amount","ask_price","bid_price","bid_amount"]
[1742814106690,0.2252233,87792.0,87791.0,0.11435692]
[1742814106888,0.2252233,87792.0,87791.0,0.11495692]
[1742814107089,0.22626331,87792.0,87791.0,0.13295562]
[1742814107384,0.34015658,87792.0,87791.0,0.24686022]
[1742814107589,0.47605658,87792.0,87791.0,0.27057006]
[1742814107990,0.47605658,87792.0,87791.0,0.15666546]
[1742814110687,0.47605658,87792.0,87791.0,0.14797437]
[1742814110893,0.47605658,87792.0,87791.0,0.14737437]
[1742814111196,0.83685658,87792.0,87791.0,0.13235562]
[1742814111699,0.83685658,87792.0,87791.0,0.06495562]
[1742814111905,0.1139123,87785.0,87784.0,0.064]
[1742814112100,0.22627231,87785.0,87784.0,0.064]
[1742814112293,0.22627231,87785.0,87784.0,0.0646]
[1742814112694,0.34018763,87785.0,87784.0,0.0646]
[1742814113005,0.34018763,87785.0,87784.0,0.064]
[1742814113597,0.53358763,87785.0,87784.0,0.064]
[1742814113993,0.53358763,87785.0,87784.0,0.0646]
[1742814114202,0.53358763,87785.0,87784.0,0.0666]
[1742814114512,0.53358763,87785.0,87784.0,0.066]
[1742814117107,0.53358763,87785.0,87784.0,0.1345]
[1742814117503,0.53358763,87785.0,87784.0,0.1351]
[1742814119002,0.42221936,87785.0,87784.0,0.1351]
[1742814119202,0.53353936,87785.0,87784.0,0.1351]
[1742814119598,0.53353936,87785.0,87784.0,0.1345]
[1742814120199,0.53353936,87785.0,87784.0,0.002]
[1742814120400,0.113924,87776.0,87775.0,0.00045571]
[1742814120610,0.22628401,87776.0,87775.0,0.00105571]
[1742814120999,0.22628401,87776.0,87775.0,0.17818101]
[1742814121000,0.34019933,87776.0,87775.0,0.17818101]
[1742814121214,0.40429933,87776.0,87775.0,0.07425571]
[1742814121403,0.40429933,87776.0,87775.0,0.18818101]
[1742814121606,0.40429933,87776.0,87775.0,0.14275571]
[1742814121804,0.40429933,87776.0,87775.0,0.25668101]
[1742814122407,0.40529933,87776.0,87775.0,0.25668101]
[1742814122612,0.34119933,87776.0,87775.0,0.26527164]
[1742814123121,0.34119933,87776.0,87775.0,0.15134634]
[1742814123415,0.47589933,87776.0,87775.0,0.15134634]
[1742814123710,0.47589933,87776.0,87775.0,0.08814634]
[1742814124105,0.47589933,87776.0,87775.0,0.06955571]
[1742814124506,0.83669933,87776.0,87775.0,0.06955571]
[1742814125717,0.83669933,87776.0,87775.0,0.00105571]
[1742814126213,0.83669933,87776.0,87775.0,0.00045571]
[1742814127416,0.1139318,87770.0,87769.0,0.0686]
[1742814127609,0.11505181,87770.0,87769.0,0.0686]
[1742814128010,0.35427881,87770.0,87769.0,0.1831331]
[1742814128320,0.35427881,87770.0,87769.0,0.0686]
[1742814128706,0.35427881,87770.0,87769.0,0.0692]
[1742814128918,0.35427881,87770.0,87769.0,0.0786]
[1742814129116,0.35427881,87770.0,87769.0,0.07928]
[1742814129711,0.35427881,87770.0,87769.0,0.06928]
[1742814129912,0.35427881,87770.0,87769.0,0.0686]
[1742814130412,0.35242608,87770.0,87769.0,0.0692]
[1742814130624,0.35242608,87770.0,87769.0,0.0686]
[1742814130826,0.35242608,87770.0,87769.0,0.06928]
[1742814131425,0.35242608,87770.0,87769.0,0.0686]
[1742814132424,0.1139344,87768.0,87767.0,0.00011394]
[1742814132621,0.58713441,87768.0,87767.0,0.00011394]
[1742814132920,0.72193441,87768.0,87767.0,0.00011394]
[1742814133129,0.8358692,87768.0,87767.0,0.00011394]
[1742814134726,0.85142442,87768.0,87767.0,0.00011394]
[1742814135111,0.8358692,87768.0,87767.0,0.00011394]
[1742814135729,0.8358692,87768.0,87767.0,0.00111394]
[1742814135928,0.8358692,87768.0,87767.0,0.01111394]
[1742814136112,0.8358692,87768.0,87767.0,0.01175394]
[1742814136617,0.8358692,87768.0,87767.0,0.07065394]
[1742814136927,0.8358692,87768.0,87767.0,0.08065394]
[1742814137313,0.1149748,87768.0,87767.0,0.19458964]
[1742814137619,0.227856,87777.0,87776.0,0.113924]
[1742814137826,0.228616,87777.0,87776.0,0.254024]
[1742814138026,0.228616,87777.0,87776.0,0.320624]
[1742814138433,0.34255339,87777.0,87776.0,0.320624]
[1742814138727,0.34255339,87777.0,87776.0,0.330624]
[1742814138925,0.40675339,87777.0,87776.0,0.0006]
[1742814139122,0.40675339,87777.0,87767.0,0.00111394]
[1742814139123,0.1139331,87769.0,87768.0,0.0675]
[1742814139324,0.1139331,87769.0,87768.0,0.06826]
[1742814139625,0.6746931,87769.0,87768.0,0.00076]
[1742814139818,0.1139344,87768.0,87767.0,0.00011394]
[1742814140015,0.1146944,87768.0,87767.0,0.00075394]
[1742814140332,0.2465944,87768.0,87767.0,0.00075394]
[1742814140523,0.36053179,87768.0,87767.0,0.00075394]
[1742814140936,0.36053179,87768.0,87767.0,0.00011394]
[1742814142522,0.36053179,87768.0,87767.0,0.00111394]
[1742814143629,0.36153179,87768.0,87767.0,0.00111394]
[1742814144226,0.36253179,87768.0,87767.0,0.00071394]
[1742814150333,0.72333179,87768.0,87767.0,0.00071394]
[1742814150718,0.83465179,87768.0,87767.0,0.00071394]
[1742814150923,0.47385179,87768.0,87767.0,0.00071394]
[1742814151823,0.29833179,87768.0,87767.0,0.00071394]
[1742814152444,0.23063179,87768.0,87767.0,0.00071394]
[1742814152620,0.29553179,87768.0,87767.0,0.00071394]
[1742814153036,0.29553179,87768.0,87767.0,0.11464964]
[1742814153437,0.29553179,87768.0,87767.0,0.25404964]
[1742814153625,0.29553179,87768.0,87767.0,0.66994964]
[1742814153825,0.29553179,87768.0,87767.0,0.55601394]
[1742814154035,0.36153179,87768.0,87767.0,0.55601394]
[1742814154335,0.36153179,87768.0,87767.0,0.66994964]
[1742814154551,0.36153179,87768.0,87767.0,0.55601394]
[1742814156731,0.29553179,87768.0,87767.0,0.66994964]
[1742814156938,0.29553179,87768.0,87767.0,0.92994964]
[1742814157139,0.1139231,87777.0,87776.0,0.1708847]
[1742814157439,0.11452311,87777.0,87776.0,0.1708847]
[1742814157843,0.2284605,87777.0,87776.0,0.1716047]
[1742814158632,0.2959605,87777.0,87776.0,0.18688143]
[1742814158830,0.2989605,87777.0,87776.0,0.18688143]
[1742814160938,0.4294605,87777.0,87776.0,0.01599673]
[1742814161134,0.4294605,87777.0,87776.0,0.01527673]
[1742814161335,0.4294605,87777.0,87776.0,0.00072]
[1742814161949,0.113924,87776.0,87775.0,0.2475253]
[1742814162249,0.11452401,87776.0,87775.0,0.2475253]
[1742814162445,0.18082401,87776.0,87775.0,0.6640653]
[1742814162642,0.29475101,87776.0,87775.0,0.7310653]
[1742814163438,0.29575101,87776.0,87775.0,0.7310653]
[1742814163638,0.36485101,87776.0,87775.0,0.6640653]
[1742814164238,0.36685101,87776.0,87775.0,0.6640653]
[1742814164441,0.36685101,87776.0,87775.0,0.67848755]
[1742814165444,0.36685101,87776.0,87775.0,0.56456225]
[1742814166040,0.36685101,87776.0,87775.0,0.41654]
[1742814167544,0.36685101,87776.0,87775.0,0.00064]
[1742814167747,0.1139318,87770.0,87769.0,0.0685]
[1742814167935,0.1146118,87770.0,87769.0,0.06922]
[1742814168133,0.3158118,87770.0,87769.0,0.06922]
[1742814168338,0.6766118,87770.0,87769.0,0.00072]
[1742814168539,0.7905388,87770.0,87769.0,0.00072]
[1742814169641,0.1139344,87768.0,87767.0,0.00011394]
[1742814169939,0.1146544,87768.0,87767.0,0.0006]
[1742814170133,0.2488544,87768.0,87767.0,0.0006]
[1742814170342,0.36278919,87768.0,87767.0,0.0006]
[1742814171242,0.36278919,87768.0,87767.0,0.0016]
[1742814171445,0.36278919,87768.0,87767.0,0.001]
[1742814172946,0.36278919,87768.0,87767.0,0.002]
[1742814173334,0.36278919,87768.0,87759.0,0.07015579]
[1742814173335,0.1139448,87760.0,87759.0,0.00045579]
[1742814173546,0.1139448,87760.0,87759.0,0.00105579]
[1742814173547,0.5868248,87760.0,87759.0,0.00105579]
[1742814173938,0.7845248,87760.0,87759.0,0.00105579]
[1742814174139,0.89846219,87760.0,87759.0,0.00105579]
[1742814174648,0.90046219,87760.0,87759.0,0.00105579]
[1742814174858,0.90246219,87760.0,87759.0,0.00105579]
[1742814175754,0.79114219,87760.0,87759.0,0.00105579]
[1742814175960,0.90246219,87760.0,87759.0,0.13365579]
[1742814176144,0.79114219,87760.0,87759.0,0.24760189]
[1742814176340,0.79114219,87760.0,87759.0,0.13365579]
[1742814176549,0.90246219,87760.0,87759.0,0.13365579]
[1742814177563,0.90246219,87760.0,87759.0,0.24760189]
[1742814178054,0.90246219,87760.0,87759.0,0.13365579]
[1742814179953,0.90246219,87760.0,87759.0,0.06525579]
[1742814181549,0.90246219,87760.0,87759.0,0.13445579]
[1742814183948,0.90246219,87760.0,87759.0,0.06525579]
[1742814184546,0.90246219,87760.0,87759.0,0.13295579]
[1742814190052,0.90246219,87760.0,87759.0,9e-08]
[1742814190557,0.1139539,87753.0,87752.0,0.0671]
[1742814190760,0.2261539,87753.0,87752.0,0.13816]
[1742814191050,0.2518739,87753.0,87752.0,0.2521152]
[1742814191256,0.40630167,87753.0,87752.0,0.2521152]
[1742814191451,0.47710167,87753.0,87752.0,0.13816]
[1742814191654,0.47810167,87753.0,87752.0,0.13816]
[1742814192355,0.49288635,87753.0,87752.0,0.13816]
[1742814194151,0.49288635,87753.0,87752.0,0.2521152]
[1742814194856,0.49288635,87753.0,87752.0,0.13816]
[1742814195555,0.49288635,87753.0,87752.0,0.2521152]
[1742814195852,0.49288635,87753.0,87752.0,0.13816]
[1742814197359,0.49288635,87753.0,87752.0,0.2521152]
[1742814198158,0.49288635,87753.0,87752.0,0.13816]
[1742814201069,0.49288635,87753.0,87752.0,0.2521152]
[1742814201954,0.38160635,87753.0,87752.0,0.2521152]
[1742814202354,0.49288635,87753.0,87752.0,0.2521152]
[1742814205667,0.36682167,87753.0,87752.0,0.2521152]
[1742814205967,0.47810167,87753.0,87752.0,0.2521152]
[1742814209758,0.36682167,87753.0,87752.0,0.2521152]
[1742814209954,0.3608,87789.0,87752.0,0.96896]
[1742814210157,0.45219921,87790.0,87775.0,0.3608]
[1742814210365,0.0569594,87780.0,87776.0,0.663324]
[1742814210565,0.38733807,87777.0,87776.0,0.98427956]
[1742814210872,0.50126442,87777.0,87776.0,0.98507956]
[1742814211171,0.57146442,87777.0,87776.0,0.98507956]
[1742814211365,0.57646442,87777.0,87776.0,0.98507956]
[1742814211957,0.30372905,87777.0,87776.0,0.98507956]
[1742814212358,0.30872905,87777.0,87776.0,0.98507956]
[1742814212770,0.19480635,87777.0,87776.0,0.98507956]
[1742814213063,0.19412635,87777.0,87776.0,0.98507956]
[1742814213264,0.19484635,87777.0,87776.0,0.98507956]
[1742814213465,0.19412635,87777.0,87776.0,0.98507956]
[1742814213675,0.19484635,87777.0,87776.0,0.98507956]
[1742814214263,0.0004,87784.0,87783.0,0.1139149]
[1742814214470,0.1143136,87784.0,87783.0,0.6956349]
[1742814214669,0.1152336,87784.0,87783.0,0.8276349]
[1742814214876,0.00132,87784.0,87783.0,0.8276349]
[1742814215171,0.1152457,87784.0,87783.0,1.2435349]
[1742814215477,0.00132,87784.0,87783.0,1.2435349]
[1742814215676,0.00632,87784.0,87783.0,1.2435349]
[1742814217267,0.1202336,87784.0,87783.0,1.2435349]
[1742814217664,0.1152336,87784.0,87783.0,1.2435349]
[1742814217868,0.1172336,87784.0,87783.0,1.2435349]
[1742814218073,0.1202336,87784.0,87783.0,1.2435349]
[1742814218662,0.1202336,87784.0,87783.0,1.0235349]
[1742814218971,0.30145022,87784.0,87783.0,1.0235349]
[1742814219769,0.23415022,87784.0,87783.0,1.2535349]
[1742814220277,0.1202336,87784.0,87783.0,1.2535349]
[1742814220477,0.00632,87784.0,87783.0,1.2535349]
[1742814220784,0.1202336,87784.0,87783.0,1.2535349]
[1742814220969,0.0054,87784.0,87783.0,1.2535349]
[1742814221165,0.1193136,87784.0,87783.0,1.2535349]
[1742814221572,0.0054,87784.0,87783.0,1.4835349]
[1742814221879,0.1203136,87784.0,87783.0,1.4835349]
[1742814222065,0.1193136,87784.0,87783.0,1.4835349]
[1742814222469,0.12027361,87784.0,87783.0,1.4835349]
[1742814222878,0.12027361,87784.0,87783.0,1.2535349]
[1742814223579,0.1193136,87784.0,87783.0,1.2535349]
[1742814223782,0.1202336,87784.0,87783.0,1.2535349]
[1742814224081,0.1884136,87784.0,87783.0,1.2535349]
[1742814224286,0.1893336,87784.0,87783.0,1.2535349]
[1742814225874,0.1893336,87784.0,87783.0,1.0235349]
[1742814236187,0.2550336,87784.0,87783.0,1.0235349]
[1742814246105,0.2550336,87784.0,87783.0,0.8915349]
[1742814246293,0.48015022,87784.0,87783.0,0.77762]
[1742814247997,0.48015022,87784.0,87783.0,0.84722]
[1742814248397,0.48015022,87784.0,87783.0,0.9611349]
[1742814248697,0.48011022,87784.0,87783.0,0.84722]
[1742814249096,0.48011022,87784.0,87783.0,1.0272349]
[1742814249296,0.48011022,87784.0,87783.0,0.91332]
[1742814249500,0.48011022,87784.0,87783.0,1.0272349]
[1742814249705,0.48011022,87784.0,87783.0,0.91332]
[1742814251707,0.48011022,87784.0,87783.0,0.84722]
[1742814251903,0.48011022,87784.0,87783.0,0.77762]
[1742814252801,0.48011022,87784.0,87783.0,0.84772]
[1742814253411,0.48011022,87784.0,87783.0,0.9616349]
[1742814255216,0.48011022,87784.0,87783.0,0.84772]
[1742814257598,0.48011022,87784.0,87783.0,0.55252]
[1742814257802,0.48011022,87784.0,87783.0,0.91332]
[1742814260610,0.48011022,87784.0,87783.0,1.0272349]
[1742814261316,0.48011022,87784.0,87783.0,0.91332]
[1742814262000,0.48011022,87784.0,87783.0,1.0272349]
[1742814263319,0.36895022,87784.0,87783.0,1.0272349]
[1742814263503,0.48011022,87784.0,87783.0,1.0272349]
[1742814263909,0.36895022,87784.0,87783.0,1.0272349]
[1742814264108,0.48011022,87784.0,87783.0,0.91332]
[1742814264519,0.48011022,87784.0,87783.0,1.0272349]
[1742814265322,0.48011022,87784.0,87783.0,0.91332]
[1742814265913,0.48011022,87784.0,87783.0,0.77762]
[1742814266513,0.48011022,87784.0,87783.0,0.8915349]
[1742814266711,0.48011022,87784.0,87783.0,0.77762]
[1742814270912,0.48011022,87784.0,87783.0,0.36172]
[1742814274026,0.48011022,87784.0,87776.0,0.0646]
[1742814274027,0.1139227,87777.0,87776.0,0.0646]
[1742814274219,0.2250827,87777.0,87776.0,0.0646]
[1742814274428,0.4287827,87777.0,87776.0,0.0646]
[1742814274826,0.54269932,87777.0,87776.0,0.0646]
[1742814275025,0.54329933,87777.0,87776.0,0.0646]
[1742814275411,0.54529933,87777.0,87776.0,0.0646]
[1742814276222,0.54529933,87777.0,87775.0,0.00017094]
[1742814276223,0.113924,87776.0,87775.0,0.00017094]
[1742814276420,0.11452401,87776.0,87775.0,0.00017094]
[1742814276621,0.25720642,87776.0,87775.0,0.00017094]
[1742814276829,0.37113342,87776.0,87775.0,0.00017094]
[1742814278532,0.37213342,87776.0,87775.0,0.00017094]
[1742814279525,0.37313342,87776.0,87775.0,0.00017094]
[1742814280830,0.5696457,87773.0,87756.0,0.4159]
[1742814281034,0.1139474,87758.0,87757.0,0.0655]
[1742814281232,0.1139474,87758.0,87757.0,0.13094]
[1742814281426,0.4273944,87758.0,87757.0,0.13094]
[1742814284234,0.0569782,87751.0,87744.0,0.00170978]
[1742814284423,0.1139643,87745.0,87744.0,0.05869228]
[1742814284627,0.1147243,87745.0,87744.0,0.06929228]
[1742814285131,0.22869155,87745.0,87744.0,0.0675825]
[1742814285637,0.22869155,87745.0,87744.0,0.08462258]
[1742814285933,0.36549155,87745.0,87744.0,0.14992258]
[1742814286328,0.36549155,87745.0,87744.0,0.15292258]
[1742814287034,0.36649155,87745.0,87744.0,0.277011]
[1742814287222,0.36649155,87745.0,87744.0,0.273011]
[1742814287223,0.40725155,87745.0,87744.0,0.273011]
[1742814287418,0.40725155,87745.0,87744.0,0.275011]
[1742814288837,0.40925155,87745.0,87744.0,0.273011]
[1742814290530,0.40925155,87745.0,87744.0,0.1372]
[1742814290740,0.47695155,87745.0,87744.0,0.1372]
[1742814291826,0.47695155,87745.0,87744.0,0.15054668]
[1742814293424,0.40925155,87745.0,87744.0,0.15054668]
[1742814294633,0.41025155,87745.0,87744.0,0.15054668]
[1742814295135,0.47705155,87745.0,87744.0,0.15054668]
[1742814295322,0.40825155,87745.0,87744.0,0.15054668]
[1742814295528,0.41025155,87745.0,87744.0,0.15054668]
[1742814296137,0.23269155,87745.0,87744.0,0.15054668]
[1742814296328,0.23069155,87745.0,87744.0,0.52451228]
[1742814296528,0.23169155,87745.0,87744.0,0.52451228]
[1742814297026,0.30289155,87745.0,87744.0,0.52451228]
[1742814297231,0.30289155,87745.0,87744.0,0.41054668]
[1742814297435,0.30089155,87745.0,87744.0,0.15054668]
[1742814297638,0.37189155,87745.0,87744.0,0.15054668]
[1742814297834,0.37389155,87745.0,87744.0,0.15054668]
[1742814298034,0.48505155,87745.0,87744.0,0.15054668]
[1742814298436,0.48405155,87745.0,87744.0,0.15054668]
[1742814299345,0.48505155,87745.0,87744.0,0.15054668]
[1742814299528,0.48405155,87745.0,87744.0,0.15054668]
[1742814300128,0.48305155,87745.0,87744.0,0.15054668]
[1742814300337,0.48505155,87745.0,87744.0,0.15054668]
[1742814300524,0.41605155,87745.0,87744.0,0.15054668]
[1742814300926,0.23369155,87745.0,87744.0,0.76451228]
[1742814301432,0.23269155,87745.0,87744.0,0.50451228]
[1742814301632,0.30189155,87745.0,87744.0,0.50451228]
[1742814302243,0.37149155,87745.0,87744.0,0.50451228]
[1742814302443,0.30189155,87745.0,87744.0,0.50451228]
[1742814302633,0.23269155,87745.0,87744.0,0.50451228]
[1742814303848,0.23169155,87745.0,87744.0,0.50451228]
[1742814304146,0.29949155,87745.0,87744.0,0.50451228]
[1742814304339,0.43239155,87745.0,87744.0,0.50451228]
[1742814305841,0.43239155,87745.0,87744.0,0.39054668]
[1742814306043,0.43239155,87745.0,87744.0,0.50451228]
[1742814307146,0.43239155,87745.0,87744.0,0.26451228]
[1742814309940,0.43239155,87745.0,87744.0,0.1372]
[1742814310137,0.43239155,87745.0,87744.0,0.0719]
[1742814310746,0.43239155,87745.0,87744.0,0.08554322]
[1742814310947,0.43239155,87745.0,87744.0,0.0719]
[1742814312142,0.43239155,87745.0,87744.0,0.0006]
[1742814313549,0.1139656,87744.0,87743.0,0.00045587]
[1742814313751,0.2258056,87744.0,87743.0,0.00117587]
[1742814313946,0.3580056,87744.0,87743.0,0.00117587]
[1742814314137,0.47197415,87744.0,87743.0,0.00117587]
[1742814314545,0.47197415,87744.0,87743.0,0.07107587]
[1742814314750,0.47197415,87744.0,87743.0,0.00117587]
[1742814315048,0.47297415,87744.0,87743.0,0.00117587]
[1742814315346,0.47497415,87744.0,87743.0,0.00045587]
[1742814315544,0.47497415,87744.0,87743.0,0.07035587]
[1742814315740,0.47497415,87744.0,87743.0,0.00045587]
[1742814315941,0.47497415,87744.0,87743.0,0.00105587]
[1742814316141,0.47497415,87744.0,87743.0,0.00045587]
[1742814316354,0.47497415,87744.0,87743.0,0.00105587]
[1742814316550,0.47497415,87744.0,87743.0,0.00045587]
[1742814317053,0.47497415,87744.0,87743.0,0.07115587]
[1742814317444,0.36385415,87744.0,87743.0,0.07115587]
[1742814317648,0.47497415,87744.0,87743.0,0.07115587]
[1742814317949,0.47497415,87744.0,87743.0,0.00105587]
[1742814318553,0.47497415,87744.0,87743.0,0.00045587]
[1742814320542,0.47497415,87744.0,87743.0,0.06725587]
[1742814320748,0.47497415,87744.0,87743.0,0.06793587]
[1742814322748,0.36385415,87744.0,87743.0,0.06793587]
[1742814323260,0.47497415,87744.0,87743.0,0.06793587]
[1742814325362,0.47497415,87744.0,87743.0,0.00113587]
[1742814326162,0.47497415,87744.0,87743.0,0.13223587]
[1742814326965,0.47497415,87744.0,87743.0,0.06633587]
[1742814329665,0.47497415,87744.0,87743.0,0.00113587]
[1742814329859,0.0569865,87739.0,87729.0,0.4159]
[1742814330060,0.1139838,87730.0,87729.0,0.4165]
[1742814330261,0.1149038,87730.0,87729.0,0.4165]
[1742814330562,0.36757235,87730.0,87729.0,0.5304851]
[1742814330768,0.36757235,87730.0,87729.0,0.5974851]
[1742814331259,0.43897235,87730.0,87729.0,0.5673324]
[1742814331462,0.43897235,87730.0,87729.0,0.57588522]
[1742814333962,0.43897235,87730.0,87729.0,0.57388522]
[1742814334681,0.43897235,87730.0,87729.0,0.68787032]
[1742814337359,0.43897235,87730.0,87729.0,0.57388522]
[1742814337968,0.43897235,87730.0,87729.0,0.68787032]
[1742814338263,0.43897235,87730.0,87729.0,0.57388522]
[1742814338465,0.79977235,87730.0,87729.0,0.57388522]
[1742814338860,0.43897235,87730.0,87729.0,0.57388522]
[1742814339658,0.43897235,87730.0,87729.0,0.5653324]
[1742814339855,0.0569951,87726.0,87719.0,0.00848514]
[1742814340060,0.0569951,87726.0,87719.0,0.05068]
[1742814340061,0.1139968,87720.0,87719.0,0.05068]
[1742814340358,0.11507681,87720.0,87719.0,0.00068]
[1742814340559,0.43186355,87720.0,87719.0,0.00068]
[1742814341260,0.43186355,87720.0,87719.0,0.00168]
[1742814341460,0.43186355,87720.0,87719.0,0.001]
[1742814341662,0.44498536,87720.0,87719.0,0.001]
[1742814341861,0.44798536,87720.0,87719.0,0.001]
[1742814342261,0.1140072,87712.0,87711.0,0.41635604]
[1742814342464,0.58700721,87712.0,87711.0,0.41743604]
[1742814343059,0.70100694,87712.0,87711.0,0.41743604]
[1742814343471,0.58988694,87712.0,87711.0,0.63743604]
[1742814343670,0.58988694,87712.0,87711.0,0.75144454]
[1742814344065,0.59188694,87712.0,87711.0,0.75144454]
[1742814344459,0.59188694,87712.0,87711.0,0.82414454]
[1742814344862,0.59288694,87712.0,87711.0,0.82414454]
[1742814345272,0.59288694,87712.0,87711.0,0.89404454]
[1742814345568,0.47888721,87712.0,87711.0,0.89404454]
[1742814346159,0.1139992,87719.0,87716.0,0.0570006]
[1742814346362,0.11112,87728.0,87719.0,0.1139981]
[1742814346569,0.11416774,87720.0,87719.0,0.9954781]
[1742814346768,0.11416774,87720.0,87719.0,1.1354781]
[1742814346961,0.11416774,87720.0,87719.0,1.2075781]
[1742814347257,0.18056774,87720.0,87719.0,1.2075781]
[1742814347457,0.11492774,87720.0,87719.0,1.2075781]
[1742814347874,0.11416774,87720.0,87719.0,1.2075781]
[1742814348072,0.11500774,87720.0,87719.0,1.2075781]
[1742814348874,0.00017094,87720.0,87719.0,1.2075781]
[1742814349065,8e-05,87722.0,87721.0,0.1139955]
[1742814349266,0.37554634,87727.0,87726.0,0.113989]
[1742814349574,0.26155474,87727.0,87726.0,0.353989]
[1742814349977,0.26231474,87727.0,87726.0,0.354669]
[1742814350276,0.26231474,87727.0,87726.0,0.494369]
[1742814350573,0.0569948,87727.0,87726.0,0.494369]
[1742814350778,0.0619948,87727.0,87726.0,0.494369]
[1742814350970,0.0619948,87727.0,87726.0,0.50733078]
[1742814351172,0.005,87727.0,87726.0,0.50733078]
[1742814351470,0.1229877,87727.0,87726.0,0.50733078]
[1742814351982,0.009,87727.0,87726.0,0.50733078]
[1742814352170,0.1229877,87727.0,87726.0,0.50733078]
[1742814352968,0.1229877,87727.0,87726.0,0.92323078]
[1742814355179,0.009,87727.0,87726.0,0.92323078]
[1742814355683,0.1229877,87727.0,87726.0,0.92323078]
[1742814355870,0.009,87727.0,87726.0,0.92323078]
[1742814356078,8e-05,87730.0,87729.0,0.1139851]
[1742814356280,8e-05,87730.0,87729.0,0.9753851]
[1742814356584,8e-05,87730.0,87729.0,1.0441851]
[1742814356777,8e-05,87730.0,87729.0,1.4600851]
[1742814357084,0.1140638,87730.0,87729.0,1.4600851]
[1742814357284,0.1140638,87730.0,87729.0,1.5287851]
[1742814357583,8e-05,87730.0,87729.0,1.6399051]
[1742814358579,8e-05,87730.0,87729.0,1.6409051]
[1742814358877,8e-05,87730.0,87729.0,1.6419051]
[1742814359478,8e-05,87730.0,87729.0,1.7126051]
[1742814359692,0.1140638,87730.0,87729.0,1.7126051]
[1742814359880,8e-05,87730.0,87729.0,1.7126051]
[1742814360384,0.1140638,87730.0,87729.0,1.7126051]
[1742814360586,8e-05,87730.0,87729.0,1.7126051]
[1742814360772,0.1140638,87730.0,87729.0,1.7126051]
[1742814360971,0.1804638,87730.0,87729.0,1.7126051]
[1742814361582,0.06648,87730.0,87729.0,1.7126051]
[1742814362385,0.1804638,87730.0,87729.0,1.7126051]
[1742814363984,0.06648,87730.0,87729.0,1.7126051]
[1742814364174,0.1804638,87730.0,87729.0,1.7126051]
[1742814367785,0.1804638,87730.0,87729.0,1.2967051]
[1742814368180,0.2505638,87730.0,87729.0,1.2967051]
[1742814369780,0.13658,87730.0,87729.0,1.2280051]
[1742814370299,0.00084,87730.0,87729.0,1.2280051]
[1742814370479,0.068,87734.0,87733.0,0.1139799]
[1742814370677,0.068,87734.0,87733.0,0.7569599]
[1742814370877,0.2094,87734.0,87733.0,0.7569599]
[1742814371082,0.21016,87734.0,87733.0,0.7569599]
[1742814371484,0.3241386,87734.0,87733.0,0.7569599]
[1742814371898,0.21016,87734.0,87733.0,0.7569599]
[1742814372206,0.2094,87734.0,87733.0,0.7569599]
[1742814372394,0.21016,87734.0,87733.0,0.7569599]
[1742814372787,0.3241386,87734.0,87733.0,0.7569599]
[1742814373296,0.06876,87734.0,87733.0,0.7569599]
[1742814373496,0.068,87734.0,87733.0,0.7569599]
[1742814373891,0.00025094,87735.0,87734.0,0.1139786]
[1742814374095,0.20455994,87757.0,87751.0,0.1139565]
[1742814374396,0.23909017,87769.0,87767.0,0.1139357]
[1742814374694,0.1817944,87768.0,87767.0,0.1145357]
[1742814375796,0.3190944,87768.0,87767.0,0.1145357]
[1742814375987,0.3220944,87768.0,87767.0,0.0006]
[1742814376188,0.3220944,87768.0,87767.0,0.1145357]
[1742814376590,0.3220944,87768.0,87767.0,0.0006]
[1742814376785,0.43603179,87768.0,87767.0,0.0006]
[1742814376993,0.43603179,87768.0,87753.0,0.1230766]
[1742814376994,0.1139448,87760.0,87759.0,0.00017094]
[1742814377290,0.1139526,87754.0,87753.0,0.23833172]
[1742814377599,0.1148726,87754.0,87753.0,0.12785172]
[1742814377895,0.1810726,87754.0,87753.0,0.12785172]
[1742814378287,0.29502816,87754.0,87753.0,0.01389892]
[1742814378489,0.29502816,87754.0,87753.0,0.01329892]
[1742814378690,0.29502816,87754.0,87753.0,0.1146339]
[1742814378889,0.1139552,87752.0,87751.0,0.0569781]
[1742814379095,0.1139591,87749.0,87748.0,0.0569798]
[1742814379295,0.1148791,87749.0,87748.0,0.0775798]
[1742814379492,0.36873466,87749.0,87748.0,0.02906033]
[1742814380290,0.44083466,87749.0,87748.0,0.02906033]
[1742814380800,0.44083466,87749.0,87748.0,0.14302073]
[1742814381095,0.44083466,87749.0,87748.0,0.02906033]
[1742814381703,0.44083466,87749.0,87748.0,0.14402073]
[1742814382002,0.44083466,87749.0,87748.0,0.14502073]
[1742814384203,0.44083466,87749.0,87748.0,0.03106033]
[1742814388397,0.44083466,87749.0,87748.0,0.14502073]
[1742814388599,0.44083466,87749.0,87748.0,0.03106033]
[1742814388803,0.44083466,87749.0,87748.0,0.14502073]
[1742814389602,0.07302,87749.0,87748.0,0.28722073]
[1742814389800,0.0721,87749.0,87748.0,0.52722073]
[1742814390001,0.07306001,87749.0,87748.0,0.52722073]
[1742814390208,0.07306001,87749.0,87748.0,0.28722073]
[1742814390407,0.18701911,87749.0,87748.0,0.28722073]
[1742814390792,0.07306001,87749.0,87748.0,0.28722073]
[1742814391510,0.00096001,87749.0,87748.0,0.54722073]
[1742814391711,0.1139591,87749.0,87748.0,0.60420083]
[1742814392006,0.1148791,87749.0,87748.0,0.60420083]
[1742814392397,0.2581791,87749.0,87748.0,0.34420083]
[1742814392702,0.14422,87749.0,87748.0,0.34420083]
[1742814392901,0.1862791,87749.0,87748.0,0.34420083]
[1742814396600,0.2528791,87749.0,87748.0,0.34420083]
[1742814397514,0.1862791,87749.0,87748.0,0.34420083]
[1742814399713,0.1862791,87749.0,87748.0,0.45528083]
[1742814400012,0.1862791,87749.0,87748.0,0.81608083]
[1742814400508,0.1862791,87749.0,87748.0,0.45528083]
[1742814400709,0.1862791,87749.0,87748.0,0.81608083]
[1742814403010,0.1862791,87749.0,87748.0,0.70500083]
[1742814403214,0.1862791,87749.0,87748.0,0.81604083]
[1742814403714,0.2583791,87749.0,87748.0,0.81604083]
[1742814404511,0.1862791,87749.0,87748.0,0.81604083]
[1742814404903,0.07232,87749.0,87748.0,0.81604083]
[1742814405304,0.1862791,87749.0,87748.0,0.81604083]
[1742814407306,0.2568791,87749.0,87748.0,0.81604083]
[1742814408613,0.2568791,87749.0,87748.0,0.70500083]
[1742814416121,0.14292,87749.0,87748.0,0.70500083]
[1742814416512,0.2568791,87749.0,87748.0,0.70500083]
[1742814416907,0.14292,87749.0,87748.0,0.77690083]
[1742814417110,0.11104,87764.0,87748.0,0.84596033]
[1742814417319,0.0681,87754.0,87753.0,0.1709308]
[1742814417626,0.0681,87754.0,87753.0,0.5852308]
[1742814417923,0.06878,87754.0,87753.0,0.5852308]
[1742814418315,0.0681,87754.0,87753.0,0.5852308]
[1742814419224,0.1827726,87754.0,87753.0,0.5852308]